[Event "US Masters 2024"]
[Site "Charlotte"]
[Date "2024.11.29"]
[Round "3.6"]
[White "Chasin, Nico"]
[Black "Nyzhnyk, Illya"]
[Result "0-1"]
[ECO "D10"]
[WhiteElo "2412"]
[BlackElo "2576"]
[Annotator "TA"]
[PlyCount "62"]
[EventDate "2024.09.23"]
[EventType "swiss"]
[EventCountry "USA"]
[SourceTitle "playchess.com"]
[Source "ChessBase"]
[SourceQuality "1"]
[TimeControl "5400+30"]

{[%evp 15,62,4,0,0,40,33,24,0,0,-137,-143,-154,-152,-145,-142,-261,-271,-276,-264,-367,-358,-412,-364,-398,-418,-407,-406,-405,-331,-369,-339,-401,-400,-415,-418,-406,-403,-406,-397,-604,-625,-720,-718,-722,-721,-1093,-972,-1058,-1038]} 1. d4 {[%emt 0:07:21]} d5 {[%emt 0:00:05]} 2. c4 {[%emt 0:00:03]} c6 {[%emt 0:00:08]} 3. cxd5 {[%emt 0:00:18]} cxd5 {[%emt 0:00:03]} 4. Bf4 {[%emt 0:00:05]} Nc6 {[%emt 0:00:09]} 5. e3 {[%emt 0:00:04]} Nf6 {[%emt 0:00:07]} 6. Nc3 {[%emt 0:00:03]} a6 {[%emt 0:00:43]} 7. Bd3 {[%emt 0:01:06]} Bg4 {[%emt 0:00:12]} 8. f3 {[%emt 0:00:34]} Bh5 {[%emt 0:00:18]} 9. Qb3 {[%emt 0:03:02]} Ra7 {[%emt 0:00:35]} 10. Nge2 {[%emt 0:04:45]} e6 {[%emt 0:00:23]} 11. e4 {[%emt 0:04:58] White has an edge.} dxe4 {[%emt 0:03:33]} 12. fxe4 {[%emt 0:00:13]} (12. Bxe4 $11 Na5 (12... Nxd4 13. Nxd4 Qxd4 14. Bc6+ bxc6 15. Qb8+ Qd8 16. Qxa7 $18) 13. Qc2) 12... Nxd4 $17 {[%emt 0:08:16] Black converts the advantage convincingly.} 13. Qa4+ {[%emt 0:00:19]} Nc6 {[%emt 0:00:04]} 14. O-O-O {[%emt 0:00:08]} Nd7 {[%emt 0:00:14]} 15. g4 {[%emt 0:05:30]} (15. Kb1 $17) 15... Bxg4 $19 {[%emt 0:04:59]} 16. Rhg1 {[%emt 0:00:02]} h5 {[%emt 0:00:15] Threatens to win with ...b5.} 17. h3 {[%emt 0:00:47]} Bxh3 {[%emt 0:00:14]} 18. Nd4 {[%emt 0:02:30]} Bg4 {[%emt 0:09:33]} 19. Nxc6 {[%emt 0:00:58]} Bxd1 {[%emt 0:00:12]} ({Much less strong is} 19... bxc6 20. Be2 $19) 20. Rxd1 {[%emt 0:00:25]} bxc6 {[%emt 0:00:04]} 21. Qxc6 {[%emt 0:00:06]} Qa8 {[%emt 0:00:20]} 22. Qa4 {[%emt 0:00:26]} Bc5 {[%emt 0:04:25] Prevents Be3.} 23. e5 {[%emt 0:01:16]} Qf3 {[%emt 0:01:44] ...Be3+ would now be deadly.} 24. Kb1 {[%emt 0:00:45]} O-O {[%emt 0:00:36]} 25. Be2 {[%emt 0:05:06]} Qh3 {[%emt 0:01:17][%cal Of8b8]} 26. Ka1 {[%emt 0:00:01]} Nb6 {[%emt 0:06:49]} 27. Qa5 {[%emt 0:02:18]} (27. Qe4 $142) 27... Rc8 {[%emt 0:01:27] Black is clearly winning.} 28. Ne4 {[%emt 0:08:58]} Qg2 {[%emt 0:03:05][%csl LRe2,LRe4]} 29. Bd3 {[%emt 0:06:03]} Bd4 {[%emt 0:03:45]} 30. Qb4 {[%emt 0:04:20] [#]} Nc4 $1 {[%emt 0:02:30]} 31. Bc1 {[%emt 0:07:18]} a5 {[%emt 0:02:38] Weighted Error Value: White=0.70/Black=0.15 (very precise) .  Mistake:       	White=3     	---        Inaccurate:     	White=1     	Black=1      OK:         	White=5     	Black=10     Best:        	---       	Black=4} 0-1

[Event "US Masters 2024"]
[Site "Charlotte"]
[Date "2024.11.29"]
[Round "3.7"]
[White "Burke, John M"]
[Black "Griffith, Kyron"]
[Result "1-0"]
[ECO "B45"]
[WhiteElo "2573"]
[BlackElo "2407"]
[Annotator "TA"]
[PlyCount "87"]
[EventDate "2024.09.23"]
[EventType "swiss"]
[EventCountry "USA"]
[SourceTitle "playchess.com"]
[Source "ChessBase"]
[SourceQuality "1"]
[TimeControl "5400+30"]

{[%evp 12,87,16,20,15,0,0,0,20,30,29,-16,0,0,-20,-18,-22,-52,-36,-107,-88,-101,0,-245,-100,-75,-86,-79,34,32,37,33,25,25,59,62,71,60,77,75,72,46,48,43,44,0,0,0,54,26,28,7,95,103,154,153,214,215,299,305,289,283,701,390,766,754,889,840,1094,1095,1049,1037,1059,1051,29977,29978,6087,723]} 1. e4 {[%emt 0:02:27]} c5 {[%emt 0:00:05]} 2. Nf3 {[%emt 0:00:13]} e6 {[%emt 0:00:09]} 3. d4 {[%emt 0:00:18]} cxd4 {[%emt 0:00:05]} 4. Nxd4 {[%emt 0:00:04]} Nc6 {[%emt 0:00:06]} 5. Nc3 {[%emt 0:00:19]} Nf6 {[%emt 0:00:08]} 6. a3 {[%emt 0:00:49]} d6 {[%emt 0:00:16]} 7. Be3 {[%emt 0:01:32]} Be7 {[%emt 0:00:08]} 8. Qe2 {[%emt 0:05:08]} e5 {[%emt 0:00:26]} 9. Nb3 {[%emt 0:02:54]} Ng4 {[%emt 0:00:25] The position is equal.} 10. Bd2 {[%emt 0:04:43]} a5 {[%emt 0:00:23]} 11. a4 {[%emt 0:07:23]} f5 {[%emt 0:00:49]} 12. f3 {[%emt 0:09:19]} Nf6 {[%emt 0:01:43]} 13. O-O-O {[%emt 0:00:10]} O-O {[%emt 0:04:01]} 14. Be3 {[%emt 0:02:40]} Kh8 {[%emt 0:04:12]} 15. Qb5 {[%emt 0:07:47]} ({Better is} 15. h3 $15) 15... Bd7 {[%emt 0:11:11]} 16. Qxb7 {[%emt 0:07:48]} fxe4 {[%emt 0:04:35]} (16... Nb4 $1 $17 17. Bb5 Rb8) 17. Nb5 $2 {[%emt 0:07:21]} (17. Bb5 $11 {and White has nothing to worry.} Rb8 18. Qa6) 17... d5 {[%emt 0:10:13]} (17... exf3 $19 {...Rb8 is the strong threat.} 18. gxf3 Rb8) 18. Bb6 {[%emt 0:02:56]} Qe8 {[%emt 0:04:23]} 19. Nc7 {[%emt 0:01:58][%csl LRa8,LRd5,LRe8] [#]} Qb8 {[%emt 0:02:42]} (19... Rb8 20. Nxe8 Rxb7 21. Nxf6 Rxf6 22. Rxd5 $14) ({Black should play} 19... Qg6 $1 $17 20. Nxa8 Rb8) 20. Qxb8 $14 {[%emt 0:00:11]} (20. Qxa8 $2 Qxb6 $19) 20... Raxb8 {[%emt 0:00:03]} 21. Nxd5 {[%emt 0:01:29]} (21. Bxa5 $2 Rxb3 22. Bc3 Rxc3 23. bxc3 d4 24. cxd4 Nxd4 $19 (24... exd4 $2 25. Kb2 $19)) 21... Nxd5 {[%emt 0:00:38]} 22. Rxd5 {[%emt 0:00:04]} Be6 {[%emt 0:00:40]} 23. Rb5 {[%emt 0:00:05] aiming for Nc5.} exf3 {[%emt 0:01:33]} 24. gxf3 {[%emt 0:00:56]} (24. Nxa5 Bg5+ 25. Kb1 Nxa5 26. Bxa5 Rxb5 27. axb5 f2 $17) 24... Bxb3 {[%emt 0:05:47]} 25. cxb3 {[%emt 0:03:45]} (25. Rxb3 Nd4 26. Bxd4 Rxb3 27. cxb3 exd4 $15) 25... Bb4 {[%emt 0:04:29]} 26. Bd3 {[%emt 0:10:48]} Nd4 {[%emt 0:09:18]} 27. Bxd4 {[%emt 0:01:44]} (27. Rxe5 $2 Rxb6 28. Kb1 Nxf3 $19 (28... Nxb3 $2 29. Ka2 $19)) 27... exd4 {[%emt 0:00:01]} 28. Be4 {[%emt 0:00:47]} Rbc8+ {[%emt 0:02:05]} 29. Kb1 {[%emt 0:01:46]} g6 {[%emt 0:03:14]} (29... Rcd8 $1 $11) 30. Rd1 {[%emt 0:00:46]} Rcd8 {[%emt 0:00:38]} 31. h4 {[%emt 0:01:42]} (31. Kc2 $5) 31... Rf7 {[%emt 0:01:47]} (31... d3 $1 $11 {remains equal.}) 32. Kc2 $36 {[%emt 0:01:03][%mdl 2048] White is in control.} Rd6 {[%emt 0:03:04]} (32... d3+ $142 33. Rxd3 Rxd3 34. Kxd3 Rd7+ 35. Bd5 Be1) 33. Kd3 {[%emt 0:00:35] White is more active.} h5 {[%emt 0:02:06] [#]} (33... Kg7 $16 34. h5 Rdf6) 34. Rg1 $1 $18 {[%emt 0:02:17]} Rf4 {[%emt 0:00:41]} 35. Rb7 {[%emt 0:01:11]} (35. Rxg6 Rxg6 36. Bxg6 Rxf3+ 37. Kc4 (37. Kxd4 Rxb3 38. Rxh5+ Kg7 $11) 37... Kg7 $11) 35... Rdf6 {[%emt 0:04:42]} 36. Rg5 {[%emt 0:03:31]} (36. Kxd4 Rd6+ 37. Kc4 Kg8 38. Rxb4 axb4 $18) (36. Bxg6 Rxf3+ 37. Kxd4 R3f4+ 38. Be4 Rg4 39. Rh7+ Kg8 40. Rxg4+ hxg4 $16) (36. Rxg6 Rxg6 37. Bxg6 Rxf3+ 38. Kxd4 Rxb3 $11) 36... Be1 $2 {[%emt 0:02:08]} (36... Rf7 37. Rxf7 (37. Rxg6 Rxb7 38. Bxb7 Rxh4 $16) 37... Rxf7 38. Rxg6 (38. Kxd4 Rd7+ 39. Ke5 Rc7 $18) 38... Re7 39. Rh6+ (39. Kxd4 Rd7+ 40. Ke5 Bd2 $18) 39... Kg7 40. Rh7+ (40. Rxh5 Re6 $18) 40... Kf8 41. Rxh5 (41. Kxd4 Rxh7 42. Bxh7 Kf7 $18) 41... Rf7) 37. Ke2 {[%emt 0:01:16]} (37. Kxd4 Rd6+ 38. Kc4 Rff6 $18) (37. Rxg6 Rxg6 38. Bxg6 Rxf3+ 39. Kc2 (39. Kxd4 Rf4+ 40. Ke5 Rxh4 $14) 39... Kg8 $14) 37... Bb4 {[%emt 0:01:19]} (37... Re6 38. Rb8+ (38. Kxe1 Rxf3 39. Kd2 Rxe4 $18) (38. Rxg6 Rxg6 39. Bxg6 Bxh4 $18) 38... Kh7 39. Rxh5+ (39. Kxe1 Rxf3 40. Rb7+ Kh8 $18) 39... Kg7) 38. Bxg6 {[%emt 0:02:14]} Re6+ {[%emt 0:05:06]} 39. Be4 {[%emt 0:00:04]} Rexe4+ {[%emt 0:00:29]} 40. fxe4 {[%emt 0:00:05]} Rxe4+ {[%emt 0:00:04]} 41. Kd3 {[%emt 0:00:47]} Rxh4 {[%emt 0:00:14]} 42. Rbb5 {[%emt 0:00:35]} Rf4 {[%emt 0:01:08]} 43. Rxh5+ {[%emt 0:00:10]} Kg7 {[%emt 0:00:02]} 44. Rhd5 {[%emt 0:00:21] Weighted Error Value: White=0.39/Black=0.58.  Loses game:     	White=1     	---        Mistake:       	White=1     	Black=9      Inaccurate:     	White=6     	Black=2      OK:         	White=13    	Black=8      Best:        	White=2     	Black=2} (44. Rbf5 $142 Rg4 45. Rhg5+ Rxg5 46. Rxg5+ Kf8 47. Rb5 (47. Kxd4 Ke7 $18) (47. Re5 Kf7 $18) 47... Ke7 48. Rxb4 (48. Kxd4 Bd2 $18) 48... axb4 49. Kxd4) 1-0

[Event "US Masters 2024"]
[Site "Charlotte"]
[Date "2024.11.29"]
[Round "3.8"]
[White "Matviishen, Viktor"]
[Black "Lee, Alice"]
[Result "1-0"]
[ECO "D30"]
[WhiteElo "2566"]
[BlackElo "2398"]
[Annotator "TA"]
[PlyCount "99"]
[EventDate "2024.09.23"]
[EventType "swiss"]
[EventCountry "USA"]
[SourceTitle "playchess.com"]
[Source "ChessBase"]
[SourceQuality "1"]
[TimeControl "5400+30"]

{[%evp 9,99,0,10,0,19,10,9,20,25,30,25,27,21,29,27,18,14,14,14,10,18,15,11,0,0,0,0,0,0,0,0,0,0,0,43,52,158,164,149,162,155,162,149,152,152,89,137,132,124,124,139,120,173,185,184,156,158,164,162,143,137,147,156,162,145,162,120,146,389,375,370,376,1439,1358,1451,1437,1568,1487,1446,1147,6287,6081,29976,29977,29980,29981,29981,29982,29982,29981,29981,29982]} 1. d4 {[%emt 0:08:05]} d5 {[%emt 0:00:13]} 2. c4 {[%emt 0:00:05]} e6 {[%emt 0:00:09]} 3. Nf3 {[%emt 0:01:13]} Nf6 {[%emt 0:00:08]} 4. cxd5 {[%emt 0:00:07]} exd5 {[%emt 0:00:09]} 5. Qc2 {[%emt 0:00:05]} Bb4+ {[%emt 0:01:48]} 6. Bd2 {[%emt 0:00:39]} Bxd2+ {[%emt 0:00:25]} 7. Nbxd2 {[%emt 0:00:06]} g6 {[%emt 0:03:56]} 8. e3 {[%emt 0:00:45] The position is equal.} Bf5 {[%emt 0:02:24]} 9. Qb3 {[%emt 0:00:06]} Qc8 {[%emt 0:00:57]} 10. Qa3 {[%emt 0:01:45]} Qd7 {[%emt 0:05:00]} 11. Rc1 {[%emt 0:06:57]} c6 {[%emt 0:01:50]} 12. h3 {[%emt 0:00:07]} Qe7 {[%emt 0:03:02]} 13. Qxe7+ {[%emt 0:00:09]} Kxe7 {[%emt 1:16:59]} 14. g4 {[%emt 0:00:15]} Be6 {[%emt 0:00:00]} 15. Bd3 {[%emt 0:01:10]} Ne8 {[%emt 0:00:00]} 16. Ng1 {[%emt 0:20:15][%cal Bf3g1,Bg1e2,Be2f4][%mdl 32]} Nd6 {[%emt 0:00:00]} 17. f3 {[%emt 0:03:07]} h5 {[%emt 0:00:00] And now ...hxg4 would win.} 18. g5 {[%emt 0:01:05]} Re8 {[%emt 0:00:00]} 19. Ne2 {[%emt 0:03:18]} Kf8 {[%emt 0:00:00]} 20. e4 {[%emt 0:07:02]} a5 {[%emt 0:00:00]} 21. Nf4 {[%emt 0:03:40]} Bf5 {[%emt 0:00:00][%cal Rd5e4]} 22. O-O $1 {[%emt 0:00:59][%csl LRd5,LRf5]} dxe4 {[%emt 0:00:00]} (22... Bd7 $14) 23. fxe4 $16 {[%emt 0:00:06]} Nxe4 {[%emt 0:00:00]} 24. Nxe4 {[%emt 0:00:10]} Bxe4 {[%emt 0:00:00]} 25. Bxe4 {[%emt 0:06:27]} Rxe4 {[%emt 0:00:00]} 26. Nxg6+ {[%emt 0:00:02]} Kg8 {[%emt 0:00:00]} 27. Ne5 {[%emt 0:00:20]} Rxd4 {[%emt 0:00:00]} (27... Na6 $142) 28. Rxf7 {[%emt 0:01:39][%cal Oc1f1] Hoping for Rcf1!} Re4 {[%emt 0:00:00] [#]} 29. Re7 {[%emt 0:03:50] White is much more active. The black rooks are passive.} Nd7 {[%emt 0:00:00]} 30. Nxc6 {[%emt 0:00:04]} (30. Rxd7 $6 Rxe5 31. Rxb7 Rxg5+ 32. Kh2 Rd8 $11) 30... Rxe7 {[%emt 0:00:00]} (30... Ra4 $16) 31. Nxe7+ {[%emt 0:00:10][%mdl 4096] Endgame. KRN-KRN} Kf7 {[%emt 0:00:00] [#]} 32. Nd5 {[%emt 0:00:14] Rc7 is the strong threat.} Ne5 {[%emt 0:00:00]} 33. Rf1+ {[%emt 0:05:42]} Kg7 {[%emt 0:00:00]} 34. Nc7 {[%emt 0:00:18]} Rc8 {[%emt 0:00:00]} 35. Ne6+ {[%emt 0:00:04]} Kg8 {[%emt 0:00:00]} 36. Rf5 {[%emt 0:00:16]} Ng6 {[%emt 0:00:00]} 37. Rf6 {[%emt 0:00:58]} ({Much less strong is} 37. Rxa5 $6 Rc1+ 38. Kg2 Rc2+ 39. Kf3 Rxb2 $14) 37... Ne5 {[%emt 0:00:00]} 38. Kf2 {[%emt 0:12:33]} Re8 $2 {[%emt 0:00:00] Black cannot hold the game after this.} (38... Rc6 $16 39. Kg3 Nd7) 39. Kg3 $18 {[%emt 0:01:14]} Nd7 {[%emt 0:00:00]} 40. Rh6 {[%emt 0:00:05]} Nf8 $2 {[%emt 0:00:00]} (40... Rc8 41. Nf4 (41. Rxh5 Rc1 $18) 41... Rc2 42. Rg6+ (42. Nxh5 Rxb2 43. Rd6 Nf8 $18) 42... Kf8) 41. Nxf8 {[%emt 0:01:13]} Rxf8 {[%emt 0:00:00] KR-KR} 42. Kh4 {[%emt 0:01:03]} Rf4+ {[%emt 0:00:00]} 43. Kxh5 {[%emt 0:00:06]} Rb4 {[%emt 0:00:00]} 44. b3 {[%emt 0:00:26]} a4 {[%emt 0:00:00]} 45. bxa4 {[%emt 0:00:04]} Rxa4 {[%emt 0:00:00]} 46. Rb6 {[%emt 0:01:03] White mates.} Rxa2 {[%emt 0:00:00]} 47. Rxb7 {[%emt 0:00:03]} Ra6 {[%emt 0:00:00]} 48. h4 {[%emt 0:00:08]} Rc6 {[%emt 0:00:00]} 49. Rd7 {[%emt 0:01:09]} Rc4 {[%emt 0:00:00]} 50. g6 {[%emt 0:01:31] Weighted Error Value: White=0.02 (flawless) /Black=0.33.  Loses game:     	---       	Black=1      Mistake:       	---       	Black=4      Inaccurate:     	---       	Black=1      OK:         	White=18    	Black=17     Best:        	White=2     	Black=3} 1-0

[Event "US Masters 2024"]
[Site "Charlotte"]
[Date "2024.11.29"]
[Round "3.9"]
[White "Juksta, Karolis"]
[Black "Kevlishvili, Robby"]
[Result "1/2-1/2"]
[ECO "D45"]
[WhiteElo "2408"]
[BlackElo "2556"]
[Annotator "TA"]
[PlyCount "88"]
[EventDate "2024.09.23"]
[EventType "swiss"]
[EventCountry "USA"]
[SourceTitle "playchess.com"]
[Source "ChessBase"]
[SourceQuality "1"]
[TimeControl "5400+30"]

{[%evp 19,88,-5,8,0,18,-14,2,0,0,-7,9,0,0,0,5,0,-2,0,-3,-13,-14,-15,-11,-9,0,0,0,0,0,-19,-11,-25,-21,-21,-10,-22,-7,-15,-14,-131,-22,-20,0,-12,0,-23,0,0,0,0,0,-9,-12,-30,-29,-34,-25,-27,-29,-34,-28,-32,-19,-26,0,0,0,0,0,-12,0]} 1. d4 {[%emt 0:04:06]} d5 {[%emt 0:00:11]} 2. c4 {[%emt 0:00:05]} e6 {[%emt 0:00:05]} 3. Nf3 {[%emt 0:01:12]} Nf6 {[%emt 0:00:16]} 4. Nc3 {[%emt 0:00:10]} Nbd7 {[%emt 0:00:13]} 5. Qc2 {[%emt 0:03:23]} c6 {[%emt 0:09:55]} 6. e4 {[%emt 0:04:58]} dxe4 {[%emt 0:01:05]} 7. Nxe4 {[%emt 0:00:05]} c5 {[%emt 0:01:08]} 8. Nxf6+ {[%emt 0:23:21]} Nxf6 {[%emt 0:00:10]} 9. dxc5 {[%emt 0:00:29]} Bxc5 {[%emt 0:00:08]} 10. Bd3 {[%emt 0:00:34]} O-O {[%emt 0:01:44]} 11. O-O {[%emt 0:00:11]} Qc7 {[%emt 0:06:02]} 12. h3 {[%emt 0:17:11]} Bd7 {[%emt 0:05:31]} 13. Qe2 {[%emt 0:04:16]} Rfd8 {[%emt 0:06:24]} 14. Be3 {[%emt 0:02:23]} Qb6 {[%emt 0:10:19]} 15. Bxc5 {[%emt 0:01:14]} Qxc5 {[%emt 0:00:57]} 16. Rfd1 {[%emt 0:01:50]} Be8 {[%emt 0:06:12]} 17. Bc2 {[%emt 0:04:29]} b5 {[%emt 0:03:28]} 18. cxb5 {[%emt 0:09:00]} (18. Rxd8 {is more complex.} Rxd8 19. cxb5 Bxb5 20. Rd1) 18... Bxb5 {[%emt 0:01:41]} 19. Bd3 {[%emt 0:00:11]} Bxd3 {[%emt 0:03:00]} 20. Rxd3 {[%emt 0:00:06]} Rxd3 {[%emt 0:01:58]} 21. Qxd3 {[%emt 0:00:02]} Rb8 {[%emt 0:01:20]} 22. Rd1 {[%emt 0:09:03]} h6 {[%emt 0:01:16]} 23. b3 {[%emt 0:04:11]} Rc8 {[%emt 0:01:06]} 24. Qd6 {[%emt 0:05:13]} Qa5 {[%emt 0:05:23]} 25. a4 {[%emt 0:00:35]} Nd5 {[%emt 0:00:39]} 26. Nd4 {[%emt 0:01:37][%cal Od4e6]} Kh7 {[%emt 0:33:19]} 27. Qe5 {[%emt 0:02:12]} Qc3 {[%emt 0:00:30]} 28. Qe4+ {[%emt 0:02:23]} Kg8 {[%emt 0:00:00]} 29. Rd3 {[%emt 0:00:00] [#]} ({Wrong is} 29. Nxe6 $2 Nf6 30. Qb7 fxe6 $19) (29. Qe5 $11) 29... Qc1+ {[%emt 0:00:00]} (29... Qa1+ $1 $17 30. Kh2 Nf6) 30. Kh2 $11 {[%emt 0:00:00]} Nf6 {[%emt 0:00:00]} 31. Qe3 {[%emt 0:00:02]} Qc7+ {[%emt 0:00:00]} (31... Qxe3 {simplifies} 32. fxe3 g5 33. Nb5 a6) 32. Qg3 {[%emt 0:00:01]} (32. g3 $5) 32... Qc5 {[%emt 0:00:00]} (32... Qxg3+ {simplifies} 33. Kxg3 Kf8 34. f4 g6) 33. Nb5 {[%emt 0:01:07]} Nd5 {[%emt 0:00:00] Wards off Rc3} 34. Rf3 {[%emt 0:00:45]} Rd8 {[%emt 0:00:00]} 35. Qe5 {[%emt 0:00:06]} Qb6 {[%emt 0:00:00]} 36. Qd4 {[%emt 0:01:17]} Qxd4 {[%emt 0:00:00]} 37. Nxd4 {[%emt 0:00:01][%mdl 4096] Endgame. KRN-KRN} Nb4 {[%emt 0:00:00] Prevents Nc6.} 38. Nb5 {[%emt 0:00:14]} a6 {[%emt 0:00:00]} 39. Na3 {[%emt 0:00:49]} Rd2 {[%emt 0:00:00]} 40. Nc4 {[%emt 0:00:30]} Re2 {[%emt 0:00:00]} 41. Kg3 {[%emt 0:00:27]} Nd5 {[%emt 0:00:00]} 42. Rd3 {[%emt 0:00:08] The position is equal.} f5 {[%emt 0:00:00]} 43. Kf3 {[%emt 0:00:16]} Ra2 {[%emt 0:00:00]} 44. Rd2 {[%emt 0:01:23]} Ra1 {[%emt 0:00:00] Weighted Error Value: White=0.13 (very precise) /Black=0.12 (very precise) .  Mistake:       	White=1     	Black=1      Inaccurate:     	White=1     	Black=1      OK:         	White=7     	Black=10     Best:        	White=1     	---} 1/2-1/2

[Event "US Masters 2024"]
[Site "Charlotte"]
[Date "2024.11.29"]
[Round "3.10"]
[White "Zhou, Liran"]
[Black "Woodward, Andy"]
[Result "1/2-1/2"]
[ECO "B51"]
[WhiteElo "2390"]
[BlackElo "2525"]
[Annotator "TA"]
[PlyCount "117"]
[EventDate "2024.09.23"]
[EventType "swiss"]
[EventCountry "USA"]
[SourceTitle "playchess.com"]
[Source "ChessBase"]
[SourceQuality "1"]
[TimeControl "5400+30"]

{[%evp 12,117,12,18,10,7,14,20,16,0,4,1,39,31,45,50,64,112,102,50,68,18,115,25,60,31,35,29,24,19,28,7,22,10,18,0,0,0,0,0,0,0,0,-8,0,0,0,0,8,8,8,-22,-19,-18,0,0,0,0,0,0,0,0,0,0,0,0,-8,-8,-8,-168,-152,-166,-66,-64,-64,-64,-22,-21,-24,-22,-37,-37,-37,-37,-37,-36,-36,-35,-8,-8,-8,-8,-8,-8,-8,-8,0,-8,0,0,0,0,0,-4,0,0,0,0]} 1. e4 {[%emt 0:02:58]} c5 {[%emt 0:00:34]} 2. Nf3 {[%emt 0:00:06]} d6 {[%emt 0:00:07]} 3. Bb5+ {[%emt 0:00:07]} Nd7 {[%emt 0:00:26]} 4. c3 {[%emt 0:00:06]} Ngf6 {[%emt 0:00:21]} 5. Qe2 {[%emt 0:00:07]} a6 {[%emt 0:00:08]} 6. Ba4 {[%emt 0:00:04]} b5 {[%emt 0:00:07]} 7. Bc2 {[%emt 0:00:04]} Bb7 {[%emt 0:00:09]} 8. d4 {[%emt 0:01:06]} e6 {[%emt 0:00:08]} 9. a4 {[%emt 0:01:16]} Be7 {[%emt 0:00:25]} 10. e5 {[%emt 0:00:50]} Nd5 {[%emt 0:05:06]} 11. dxc5 {[%emt 0:03:52]} Nxc5 {[%emt 0:29:33]} (11... dxc5 {simplifies} 12. O-O Bc6 13. Re1 Rb8) 12. axb5 {[%emt 0:04:30] b4 is the strong threat.} axb5 {[%emt 0:04:26]} 13. Qxb5+ {[%emt 0:02:39]} Kf8 {[%emt 0:01:37]} 14. Rxa8 {[%emt 0:05:02]} Qxa8 {[%emt 0:01:33]} 15. exd6 {[%emt 0:00:58]} ({Better is} 15. b4 $16 {Black must now prevent exd6.} Nc7 16. Qe2) 15... Bxd6 $14 {[%emt 0:00:08]} 16. Qe2 {[%emt 0:03:09]} (16. b4 $14 Ba6 17. Qa5) 16... Qa6 {[%emt 0:01:07] [#]} (16... Nf4 $11 {remains equal.} 17. Bxf4 Bxf4) 17. b4 {[%emt 0:09:02]} (17. c4 $1 $16 {[%cal Rc4d5]} Nb4 18. O-O) 17... Qxe2+ $1 $11 {[%emt 0:02:45]} 18. Kxe2 {[%emt 0:00:03]} Nd7 {[%emt 0:03:41]} 19. Bd3 {[%emt 0:19:27]} Ke7 {[%emt 0:01:06]} 20. Bg5+ {[%emt 0:04:56]} f6 {[%emt 0:02:13]} 21. Bd2 {[%emt 0:00:06]} Ra8 {[%emt 0:02:42]} 22. Rc1 {[%emt 0:03:41][%cal Og2g3]} h5 {[%emt 0:03:09]} 23. Rc2 {[%emt 0:10:21]} g5 {[%emt 0:02:13]} 24. h3 {[%emt 0:03:02]} g4 {[%emt 0:12:12]} 25. hxg4 {[%emt 0:04:16]} hxg4 {[%emt 0:00:01]} 26. Nd4 {[%emt 0:00:14]} Be5 {[%emt 0:02:40][%cal Od5b4]} 27. Bb5 {[%emt 0:09:29]} Rc8 {[%emt 0:05:05] Prevents Bc6. ...Bxd4 would now be deadly.} 28. Na3 {[%emt 0:02:46]} N7b6 {[%emt 0:05:39]} 29. Bd3 {[%emt 0:02:20]} Nf4+ {[%emt 0:02:48]} 30. Bxf4 {[%emt 0:00:06]} Bxf4 {[%emt 0:00:02]} 31. f3 {[%emt 0:03:00]} gxf3+ {[%emt 0:01:58]} 32. gxf3 {[%emt 0:00:33]} Nd5 {[%emt 0:01:01]} 33. Nc4 {[%emt 0:02:44] Prevents Ne3} f5 {[%emt 0:00:37]} 34. Na5 {[%emt 0:00:58]} Ba8 {[%emt 0:00:09][%cal Od5e3] This pair of bishops is nice.} 35. Bc4 {[%emt 0:00:41]} Be5 {[%emt 0:00:55]} 36. Bxd5 {[%emt 0:00:38]} Bxd5 {[%emt 0:00:02]} 37. Ke3 {[%emt 0:00:36]} Kf6 {[%emt 0:03:30]} 38. f4 {[%emt 0:01:48]} Bd6 {[%emt 0:00:13] White should prevent ...Be4.} 39. c4 {[%emt 0:01:18]} Be4 {[%emt 0:00:10][%cal Od6b4]} 40. Rh2 $2 {[%emt 0:00:41]} (40. c5 $1 $11 {and White stays safe.} Bxf4+ 41. Kxf4 e5+ 42. Kg3) 40... Bxb4 $19 {[%emt 0:00:09]} 41. Rh6+ {[%emt 0:00:44] [#]} Kg7 {[%emt 0:00:12]} (41... Kf7 $1 $19 42. Rh7+ Kg6) 42. Rxe6 $15 {[%emt 0:00:04]} Bxa5 {[%emt 0:00:03]} 43. Re5 $1 {[%emt 0:00:03][%csl LRa5,LRf5]} Bb6 {[%emt 0:00:14]} (43... Bd8 {simplifies} 44. Nxf5+ Bxf5 45. Rxf5 Rxc4 46. Re5 Rc3+) 44. c5 {[%emt 0:00:08]} Bc7 {[%emt 0:02:03]} 45. Nxf5+ {[%emt 0:00:14]} Bxf5 {[%emt 0:00:02]} 46. Rxf5 $11 {[%emt 0:00:06][%mdl 4096] Endgame. KRB-KR} Kg6 {[%emt 0:00:11]} 47. Rd5 {[%emt 0:00:39]} Kf6 {[%emt 0:00:34]} 48. f5 {[%emt 0:00:49]} Rh8 {[%emt 0:01:30]} 49. Rd7 {[%emt 0:00:33]} Bh2 {[%emt 0:00:50][%cal Oh8h4]} 50. Ke4 {[%emt 0:00:48] The position is equal.} Rh4+ {[%emt 0:00:20]} 51. Kd5 {[%emt 0:00:08]} Bg1 {[%emt 0:00:02]} (51... Kxf5 52. c6) 52. Kc6 {[%emt 0:01:03]} Kxf5 {[%emt 0:00:13]} 53. Rd1 {[%emt 0:00:50]} Bd4 {[%emt 0:00:15]} 54. Kd5 {[%emt 0:00:15]} Bf2 {[%emt 0:01:43]} 55. c6 {[%emt 0:00:31] White threatens c7 and mate.} Bb6 {[%emt 0:00:29]} 56. Rf1+ {[%emt 0:00:21]} Kg5 {[%emt 0:00:13]} 57. Rb1 {[%emt 0:00:32]} Bd8 {[%emt 0:01:22]} 58. Rb7 {[%emt 0:00:38]} Rh1 {[%emt 0:00:39]} 59. c7 {[%emt 0:00:06] Weighted Error Value: White=0.10 (very precise) /Black=0.09 (flawless) .  Mistake:       	White=4     	Black=2      Inaccurate:     	White=2     	Black=3      OK:         	White=26    	Black=17     Best:        	White=5     	Black=4      Strong:       	White=1     	Black=1} 1/2-1/2